Workbook

Sheet Pendapatan (Penjualan)
B1: Dua Belas Bulan | AD1: Nama Perusahaan
B2: PERKIRAAN LABA & RUGI | AB2: MULAI TAHUN FISKAL: | AC2: JAN | AD2: =YEAR(TODAY()) -> 2017
D3: =UPPER(TEXT(DATE(FYTahunMulai,FYNoBulan,1),"mmm-yy")) -> JAN-17 | E3: =UPPER(TEXT(DATE(FYTahunMulai,FYNoBulan+1,1),"mmm-yy")) -> FEB-17 | F3: =UPPER(TEXT(DATE(FYTahunMulai,FYNoBulan+2,1),"mmm-yy")) -> MAR-17 | G3: =UPPER(TEXT(DATE(FYTahunMulai,FYNoBulan+3,1),"mmm-yy")) -> APR-17 | H3: =UPPER(TEXT(DATE(FYTahunMulai,FYNoBulan+4,1),"mmm-yy")) -> MEI-17 | I3: =UPPER(TEXT(DATE(FYTahunMulai,FYNoBulan+5,1),"mmm-yy")) -> JUN-17 | J3: =UPPER(TEXT(DATE(FYTahunMulai,FYNoBulan+6,1),"mmm-yy")) -> JUL-17 | K3: =UPPER(TEXT(DATE(FYTahunMulai,FYNoBulan+7,1),"mmm-yy")) -> AGU-17 | L3: =UPPER(TEXT(DATE(FYTahunMulai,FYNoBulan+8,1),"mmm-yy")) -> SEP-17 | M3: =UPPER(TEXT(DATE(FYTahunMulai,FYNoBulan+9,1),"mmm-yy")) -> OKT-17 | N3: =UPPER(TEXT(DATE(FYTahunMulai,FYNoBulan+10,1),"mmm-yy")) -> NOV-17 | O3: =UPPER(TEXT(DATE(FYTahunMulai,FYNoBulan+11,1),"mmm-yy")) -> DES-17 | P3: TAHUNAN | Q3: IND % | R3: =LEFT(D3,3)&" %" -> JAN % | S3: =LEFT(E3,3)&" %" -> FEB % | T3: MAR % | U3: APR % | V3: MEI % | W3: JUN % | X3: JUL % | Y3: AGU % | Z3: SEP % | AA3: OKT % | AB3: NOV % | AC3: DES % | AD3: TAHUN %
B4: PENDAPATAN (PENJUALAN) | C4: TREN | D4: Jan | E4: Feb | F4: Mar | G4: Apr | H4: Mei | I4: Jun | J4: Jul | K4: Agu | L4: Sep | M4: Okt | N4: Nov | O4: Des | P4: Tahunan | Q4: Indeks % | R4: Jan % | S4: Feb % | T4: Mar % | U4: Apr % | V4: Mei % | W4: Jun % | X4: Jul % | Y4: Agu % | Z4: Sep % | AA4: Okt % | AB4: Nov % | AC4: Des % | AD4: Tahun %
B5: Pendapatan 1 | D5: Rp186,000 | E5: Rp108,000 | F5: Rp92,000 | G5: Rp122,000 | H5: Rp190,000 | I5: Rp71,000 | J5: Rp21,000 | K5: Rp37,000 | L5: Rp24,000 | M5: Rp178,000 | N5: Rp92,000 | O5: Rp97,000 | P5: =SUM(Pendapatan[[#This Row],[Jan]:[Des]]) -> Rp1,218,000 | Q5: 12% | R5: =IFERROR(Pendapatan[[#This Row],[Jan]]/Pendapatan[[#Totals],[Jan]],"-") -> 30% | S5: =IFERROR(Pendapatan[[#This Row],[Feb]]/Pendapatan[[#Totals],[Feb]],"-") -> 15% | T5: =IFERROR(Pendapatan[[#This Row],[Mar]]/Pendapatan[[#Totals],[Mar]],"-") -> 11% | U5: =IFERROR(Pendapatan[[#This Row],[Apr]]/Pendapatan[[#Totals],[Apr]],"-") -> 20% | V5: =IFERROR(Pendapatan[[#This Row],[Mei]]/Pendapatan[[#Totals],[Mei]],"-") -> 23% | W5: =IFERROR(Pendapatan[[#This Row],[Jun]]/Pendapatan[[#Totals],[Jun]],"-") -> 12% | X5: =IFERROR(Pendapatan[[#This Row],[Jul]]/Pendapatan[[#Totals],[Jul]],"-") -> 4% | Y5: =IFERROR(Pendapatan[[#This Row],[Agu]]/Pendapatan[[#Totals],[Agu]],"-") -> 5% | Z5: =IFERROR(Pendapatan[[#This Row],[Sep]]/Pendapatan[[#Totals],[Sep]],"-") -> 3% | AA5: =IFERROR(Pendapatan[[#This Row],[Okt]]/Pendapatan[[#Totals],[Okt]],"-") -> 26% | AB5: =IFERROR(Pendapatan[[#This Row],[Nov]]/Pendapatan[[#Totals],[Nov]],"-") -> 12% | AC5: =IFERROR(Pendapatan[[#This Row],[Des]]/Pendapatan[[#Totals],[Des]],"-") -> 9% | AD5: =IFERROR(Pendapatan[[#This Row],[Tahunan]]/Pendapatan[[#Totals],[Tahunan]],"-") -> 14%
B6: Pendapatan 2 | D6: Rp15,000 | E6: Rp16,000 | F6: Rp198,000 | G6: Rp44,000 | H6: Rp25,000 | I6: Rp68,000 | J6: Rp43,000 | K6: Rp119,000 | L6: Rp37,000 | M6: Rp118,000 | N6: Rp29,000 | O6: Rp171,000 | P6: =SUM(Pendapatan[[#This Row],[Jan]:[Des]]) -> Rp883,000 | Q6: 18% | R6: =IFERROR(Pendapatan[[#This Row],[Jan]]/Pendapatan[[#Totals],[Jan]],"-") -> 2% | S6: =IFERROR(Pendapatan[[#This Row],[Feb]]/Pendapatan[[#Totals],[Feb]],"-") -> 2% | T6: =IFERROR(Pendapatan[[#This Row],[Mar]]/Pendapatan[[#Totals],[Mar]],"-") -> 24% | U6: =IFERROR(Pendapatan[[#This Row],[Apr]]/Pendapatan[[#Totals],[Apr]],"-") -> 7% | V6: =IFERROR(Pendapatan[[#This Row],[Mei]]/Pendapatan[[#Totals],[Mei]],"-") -> 3% | W6: =IFERROR(Pendapatan[[#This Row],[Jun]]/Pendapatan[[#Totals],[Jun]],"-") -> 12% | X6: =IFERROR(Pendapatan[[#This Row],[Jul]]/Pendapatan[[#Totals],[Jul]],"-") -> 7% | Y6: =IFERROR(Pendapatan[[#This Row],[Agu]]/Pendapatan[[#Totals],[Agu]],"-") -> 18% | Z6: =IFERROR(Pendapatan[[#This Row],[Sep]]/Pendapatan[[#Totals],[Sep]],"-") -> 5% | AA6: =IFERROR(Pendapatan[[#This Row],[Okt]]/Pendapatan[[#Totals],[Okt]],"-") -> 17% | AB6: =IFERROR(Pendapatan[[#This Row],[Nov]]/Pendapatan[[#Totals],[Nov]],"-") -> 4% | AC6: =IFERROR(Pendapatan[[#This Row],[Des]]/Pendapatan[[#Totals],[Des]],"-") -> 16% | AD6: =IFERROR(Pendapatan[[#This Row],[Tahunan]]/Pendapatan[[#Totals],[Tahunan]],"-") -> 10%
B7: Pendapatan 3 | D7: Rp166,000 | E7: Rp185,000 | F7: Rp89,000 | G7: Rp170,000 | H7: Rp131,000 | I7: Rp70,000 | J7: Rp50,000 | K7: Rp149,000 | L7: Rp179,000 | M7: Rp104,000 | N7: Rp119,000 | O7: Rp187,000 | P7: =SUM(Pendapatan[[#This Row],[Jan]:[Des]]) -> Rp1,599,000 | Q7: 19% | R7: =IFERROR(Pendapatan[[#This Row],[Jan]]/Pendapatan[[#Totals],[Jan]],"-") -> 27% | S7: =IFERROR(Pendapatan[[#This Row],[Feb]]/Pendapatan[[#Totals],[Feb]],"-") -> 25% | T7: =IFERROR(Pendapatan[[#This Row],[Mar]]/Pendapatan[[#Totals],[Mar]],"-") -> 11% | U7: =IFERROR(Pendapatan[[#This Row],[Apr]]/Pendapatan[[#Totals],[Apr]],"-") -> 28% | V7: =IFERROR(Pendapatan[[#This Row],[Mei]]/Pendapatan[[#Totals],[Mei]],"-") -> 16% | W7: =IFERROR(Pendapatan[[#This Row],[Jun]]/Pendapatan[[#Totals],[Jun]],"-") -> 12% | X7: =IFERROR(Pendapatan[[#This Row],[Jul]]/Pendapatan[[#Totals],[Jul]],"-") -> 8% | Y7: =IFERROR(Pendapatan[[#This Row],[Agu]]/Pendapatan[[#Totals],[Agu]],"-") -> 22% | Z7: =IFERROR(Pendapatan[[#This Row],[Sep]]/Pendapatan[[#Totals],[Sep]],"-") -> 24% | AA7: =IFERROR(Pendapatan[[#This Row],[Okt]]/Pendapatan[[#Totals],[Okt]],"-") -> 15% | AB7: =IFERROR(Pendapatan[[#This Row],[Nov]]/Pendapatan[[#Totals],[Nov]],"-") -> 16% | AC7: =IFERROR(Pendapatan[[#This Row],[Des]]/Pendapatan[[#Totals],[Des]],"-") -> 18% | AD7: =IFERROR(Pendapatan[[#This Row],[Tahunan]]/Pendapatan[[#Totals],[Tahunan]],"-") -> 18%
B8: Pendapatan 4 | D8: Rp21,000 | E8: Rp113,000 | F8: Rp83,000 | G8: Rp17,000 | H8: Rp130,000 | I8: Rp26,000 | J8: Rp167,000 | K8: Rp102,000 | L8: Rp82,000 | M8: Rp33,000 | N8: Rp88,000 | O8: Rp193,000 | P8: =SUM(Pendapatan[[#This Row],[Jan]:[Des]]) -> Rp1,055,000 | Q8: 11% | R8: =IFERROR(Pendapatan[[#This Row],[Jan]]/Pendapatan[[#Totals],[Jan]],"-") -> 3% | S8: =IFERROR(Pendapatan[[#This Row],[Feb]]/Pendapatan[[#Totals],[Feb]],"-") -> 15% | T8: =IFERROR(Pendapatan[[#This Row],[Mar]]/Pendapatan[[#Totals],[Mar]],"-") -> 10% | U8: =IFERROR(Pendapatan[[#This Row],[Apr]]/Pendapatan[[#Totals],[Apr]],"-") -> 3% | V8: =IFERROR(Pendapatan[[#This Row],[Mei]]/Pendapatan[[#Totals],[Mei]],"-") -> 16% | W8: =IFERROR(Pendapatan[[#This Row],[Jun]]/Pendapatan[[#Totals],[Jun]],"-") -> 4% | X8: =IFERROR(Pendapatan[[#This Row],[Jul]]/Pendapatan[[#Totals],[Jul]],"-") -> 28% | Y8: =IFERROR(Pendapatan[[#This Row],[Agu]]/Pendapatan[[#Totals],[Agu]],"-") -> 15% | Z8: =IFERROR(Pendapatan[[#This Row],[Sep]]/Pendapatan[[#Totals],[Sep]],"-") -> 11% | AA8: =IFERROR(Pendapatan[[#This Row],[Okt]]/Pendapatan[[#Totals],[Okt]],"-") -> 5% | AB8: =IFERROR(Pendapatan[[#This Row],[Nov]]/Pendapatan[[#Totals],[Nov]],"-") -> 12% | AC8: =IFERROR(Pendapatan[[#This Row],[Des]]/Pendapatan[[#Totals],[Des]],"-") -> 19% | AD8: =IFERROR(Pendapatan[[#This Row],[Tahunan]]/Pendapatan[[#Totals],[Tahunan]],"-") -> 12%
B9: Pendapatan 5 | D9: Rp70,000 | E9: Rp160,000 | F9: Rp125,000 | G9: Rp84,000 | H9: Rp191,000 | I9: Rp97,000 | J9: Rp52,000 | K9: Rp45,000 | L9: Rp173,000 | M9: Rp136,000 | N9: Rp144,000 | O9: Rp167,000 | P9: =SUM(Pendapatan[[#This Row],[Jan]:[Des]]) -> Rp1,444,000 | Q9: 20% | R9: =IFERROR(Pendapatan[[#This Row],[Jan]]/Pendapatan[[#Totals],[Jan]],"-") -> 11% | S9: =IFERROR(Pendapatan[[#This Row],[Feb]]/Pendapatan[[#Totals],[Feb]],"-") -> 22% | T9: =IFERROR(Pendapatan[[#This Row],[Mar]]/Pendapatan[[#Totals],[Mar]],"-") -> 15% | U9: =IFERROR(Pendapatan[[#This Row],[Apr]]/Pendapatan[[#Totals],[Apr]],"-") -> 14% | V9: =IFERROR(Pendapatan[[#This Row],[Mei]]/Pendapatan[[#Totals],[Mei]],"-") -> 24% | W9: =IFERROR(Pendapatan[[#This Row],[Jun]]/Pendapatan[[#Totals],[Jun]],"-") -> 17% | X9: =IFERROR(Pendapatan[[#This Row],[Jul]]/Pendapatan[[#Totals],[Jul]],"-") -> 9% | Y9: =IFERROR(Pendapatan[[#This Row],[Agu]]/Pendapatan[[#Totals],[Agu]],"-") -> 7% | Z9: =IFERROR(Pendapatan[[#This Row],[Sep]]/Pendapatan[[#Totals],[Sep]],"-") -> 23% | AA9: =IFERROR(Pendapatan[[#This Row],[Okt]]/Pendapatan[[#Totals],[Okt]],"-") -> 20% | AB9: =IFERROR(Pendapatan[[#This Row],[Nov]]/Pendapatan[[#Totals],[Nov]],"-") -> 19% | AC9: =IFERROR(Pendapatan[[#This Row],[Des]]/Pendapatan[[#Totals],[Des]],"-") -> 16% | AD9: =IFERROR(Pendapatan[[#This Row],[Tahunan]]/Pendapatan[[#Totals],[Tahunan]],"-") -> 17%
B10: Pendapatan 6 | D10: Rp61,000 | E10: Rp99,000 | F10: Rp70,000 | G10: Rp162,000 | H10: Rp28,000 | I10: Rp163,000 | J10: Rp101,000 | K10: Rp103,000 | L10: Rp78,000 | M10: Rp33,000 | N10: Rp162,000 | O10: Rp159,000 | P10: =SUM(Pendapatan[[#This Row],[Jan]:[Des]]) -> Rp1,219,000 | Q10: 10% | R10: =IFERROR(Pendapatan[[#This Row],[Jan]]/Pendapatan[[#Totals],[Jan]],"-") -> 10% | S10: =IFERROR(Pendapatan[[#This Row],[Feb]]/Pendapatan[[#Totals],[Feb]],"-") -> 13% | T10: =IFERROR(Pendapatan[[#This Row],[Mar]]/Pendapatan[[#Totals],[Mar]],"-") -> 9% | U10: =IFERROR(Pendapatan[[#This Row],[Apr]]/Pendapatan[[#Totals],[Apr]],"-") -> 27% | V10: =IFERROR(Pendapatan[[#This Row],[Mei]]/Pendapatan[[#Totals],[Mei]],"-") -> 3% | W10: =IFERROR(Pendapatan[[#This Row],[Jun]]/Pendapatan[[#Totals],[Jun]],"-") -> 28% | X10: =IFERROR(Pendapatan[[#This Row],[Jul]]/Pendapatan[[#Totals],[Jul]],"-") -> 17% | Y10: =IFERROR(Pendapatan[[#This Row],[Agu]]/Pendapatan[[#Totals],[Agu]],"-") -> 15% | Z10: =IFERROR(Pendapatan[[#This Row],[Sep]]/Pendapatan[[#Totals],[Sep]],"-") -> 10% | AA10: =IFERROR(Pendapatan[[#This Row],[Okt]]/Pendapatan[[#Totals],[Okt]],"-") -> 5% | AB10: =IFERROR(Pendapatan[[#This Row],[Nov]]/Pendapatan[[#Totals],[Nov]],"-") -> 22% | AC10: =IFERROR(Pendapatan[[#This Row],[Des]]/Pendapatan[[#Totals],[Des]],"-") -> 15% | AD10: =IFERROR(Pendapatan[[#This Row],[Tahunan]]/Pendapatan[[#Totals],[Tahunan]],"-") -> 14%
B11: Pendapatan 7 | D11: Rp105,000 | E11: Rp55,000 | F11: Rp163,000 | G11: Rp12,000 | H11: Rp117,000 | I11: Rp83,000 | J11: Rp163,000 | K11: Rp120,000 | L11: Rp171,000 | M11: Rp79,000 | N11: Rp105,000 | O11: Rp69,000 | P11: =SUM(Pendapatan[[#This Row],[Jan]:[Des]]) -> Rp1,242,000 | Q11: 10% | R11: =IFERROR(Pendapatan[[#This Row],[Jan]]/Pendapatan[[#Totals],[Jan]],"-") -> 17% | S11: =IFERROR(Pendapatan[[#This Row],[Feb]]/Pendapatan[[#Totals],[Feb]],"-") -> 7% | T11: =IFERROR(Pendapatan[[#This Row],[Mar]]/Pendapatan[[#Totals],[Mar]],"-") -> 20% | U11: =IFERROR(Pendapatan[[#This Row],[Apr]]/Pendapatan[[#Totals],[Apr]],"-") -> 2% | V11: =IFERROR(Pendapatan[[#This Row],[Mei]]/Pendapatan[[#Totals],[Mei]],"-") -> 14% | W11: =IFERROR(Pendapatan[[#This Row],[Jun]]/Pendapatan[[#Totals],[Jun]],"-") -> 14% | X11: =IFERROR(Pendapatan[[#This Row],[Jul]]/Pendapatan[[#Totals],[Jul]],"-") -> 27% | Y11: =IFERROR(Pendapatan[[#This Row],[Agu]]/Pendapatan[[#Totals],[Agu]],"-") -> 18% | Z11: =IFERROR(Pendapatan[[#This Row],[Sep]]/Pendapatan[[#Totals],[Sep]],"-") -> 23% | AA11: =IFERROR(Pendapatan[[#This Row],[Okt]]/Pendapatan[[#Totals],[Okt]],"-") -> 12% | AB11: =IFERROR(Pendapatan[[#This Row],[Nov]]/Pendapatan[[#Totals],[Nov]],"-") -> 14% | AC11: =IFERROR(Pendapatan[[#This Row],[Des]]/Pendapatan[[#Totals],[Des]],"-") -> 7% | AD11: =IFERROR(Pendapatan[[#This Row],[Tahunan]]/Pendapatan[[#Totals],[Tahunan]],"-") -> 14%
B12: TOTAL PENJUALAN | D12: =SUBTOTAL(109,Pendapatan[Jan]) -> Rp624,000 | E12: =SUBTOTAL(109,Pendapatan[Feb]) -> Rp736,000 | F12: =SUBTOTAL(109,Pendapatan[Mar]) -> Rp820,000 | G12: =SUBTOTAL(109,Pendapatan[Apr]) -> Rp611,000 | H12: =SUBTOTAL(109,Pendapatan[Mei]) -> Rp812,000 | I12: =SUBTOTAL(109,Pendapatan[Jun]) -> Rp578,000 | J12: =SUBTOTAL(109,Pendapatan[Jul]) -> Rp597,000 | K12: =SUBTOTAL(109,Pendapatan[Agu]) -> Rp675,000 | L12: =SUBTOTAL(109,Pendapatan[Sep]) -> Rp744,000 | M12: =SUBTOTAL(109,Pendapatan[Okt]) -> Rp681,000 | N12: =SUBTOTAL(109,Pendapatan[Nov]) -> Rp739,000 | O12: =SUBTOTAL(109,Pendapatan[Des]) -> Rp1,043,000 | P12: =SUBTOTAL(109,Pendapatan[Tahunan]) -> Rp8,660,000 | Q12: =SUBTOTAL(109,Pendapatan[Indeks %]) -> 100% | R12: =SUBTOTAL(109,Pendapatan[Jan %]) -> 100% | S12: =SUBTOTAL(109,Pendapatan[Feb %]) -> 100% | T12: =SUBTOTAL(109,Pendapatan[Mar %]) -> 100% | U12: =SUBTOTAL(109,Pendapatan[Apr %]) -> 100% | V12: =SUBTOTAL(109,Pendapatan[Mei %]) -> 100% | W12: =SUBTOTAL(109,Pendapatan[Jun %]) -> 100% | X12: =SUBTOTAL(109,Pendapatan[Jul %]) -> 100% | Y12: =SUBTOTAL(109,Pendapatan[Agu %]) -> 100% | Z12: =SUBTOTAL(109,Pendapatan[Sep %]) -> 100% | AA12: =SUBTOTAL(109,Pendapatan[Okt %]) -> 100% | AB12: =SUBTOTAL(109,Pendapatan[Nov %]) -> 100% | AC12: =SUBTOTAL(109,Pendapatan[Des %]) -> 100% | AD12: =SUBTOTAL(109,Pendapatan[Tahun %]) -> 100%

Sheet Biaya Penjualan
B1: =Judul_Periode_Perkiraan -> Dua Belas Bulan | AD1: =Nama_Perusahaan -> Nama Perusahaan
B2: =Judul_Wksht -> PERKIRAAN LABA & RUGI | AB2: TAHUN FISKAL: | AC2: =FYMulaiBulan -> JAN | AD2: =FYTahunMulai -> 2017
D3: =UPPER(TEXT(DATE(FYTahunMulai,FYNoBulan,1),"mmm-yy")) -> JAN-17 | E3: =UPPER(TEXT(DATE(FYTahunMulai,FYNoBulan+1,1),"mmm-yy")) -> FEB-17 | F3: =UPPER(TEXT(DATE(FYTahunMulai,FYNoBulan+2,1),"mmm-yy")) -> MAR-17 | G3: =UPPER(TEXT(DATE(FYTahunMulai,FYNoBulan+3,1),"mmm-yy")) -> APR-17 | H3: =UPPER(TEXT(DATE(FYTahunMulai,FYNoBulan+4,1),"mmm-yy")) -> MEI-17 | I3: =UPPER(TEXT(DATE(FYTahunMulai,FYNoBulan+5,1),"mmm-yy")) -> JUN-17 | J3: =UPPER(TEXT(DATE(FYTahunMulai,FYNoBulan+6,1),"mmm-yy")) -> JUL-17 | K3: =UPPER(TEXT(DATE(FYTahunMulai,FYNoBulan+7,1),"mmm-yy")) -> AGU-17 | L3: =UPPER(TEXT(DATE(FYTahunMulai,FYNoBulan+8,1),"mmm-yy")) -> SEP-17 | M3: =UPPER(TEXT(DATE(FYTahunMulai,FYNoBulan+9,1),"mmm-yy")) -> OKT-17 | N3: =UPPER(TEXT(DATE(FYTahunMulai,FYNoBulan+10,1),"mmm-yy")) -> NOV-17 | O3: =UPPER(TEXT(DATE(FYTahunMulai,FYNoBulan+11,1),"mmm-yy")) -> DES-17 | P3: TAHUNAN | Q3: IND % | R3: =LEFT(D3,3)&" %" -> JAN % | S3: =LEFT(E3,3)&" %" -> FEB % | T3: MAR % | U3: APR % | V3: MEI % | W3: JUN % | X3: JUL % | Y3: AGU % | Z3: SEP % | AA3: OKT % | AB3: NOV % | AC3: DES % | AD3: TAHUN %
B4: BIAYA PENJUALAN | C4: TREN | D4: Jan | E4: Feb | F4: Mar | G4: Apr | H4: Mei | I4: Jun | J4: Jul | K4: Agu | L4: Sep | M4: Okt | N4: Nov | O4: Des | P4: Tahunan | Q4: Indeks % | R4: Jan % | S4: Feb % | T4: Mar % | U4: Apr % | V4: Mei % | W4: Jun % | X4: Jul % | Y4: Agu % | Z4: Sep % | AA4: Okt % | AB4: Nov % | AC4: Des % | AD4: Tahun %
B5: Biaya 1 | D5: Rp61,000 | E5: Rp78,000 | F5: Rp65,000 | G5: Rp29,000 | H5: Rp125,000 | I5: Rp49,000 | J5: Rp14,000 | K5: Rp26,000 | L5: Rp14,000 | M5: Rp129,000 | N5: Rp60,000 | O5: Rp65,000 | P5: =SUM(BiayaPenjualan[[#This Row],[Jan]:[Des]]) -> Rp715,000 | Q5: 12% | R5: =IFERROR(BiayaPenjualan[[#This Row],[Jan]]/BiayaPenjualan[[#Totals],[Jan]],"-") -> 23% | S5: =IFERROR(BiayaPenjualan[[#This Row],[Feb]]/BiayaPenjualan[[#Totals],[Feb]],"-") -> 22% | T5: =IFERROR(BiayaPenjualan[[#This Row],[Mar]]/BiayaPenjualan[[#Totals],[Mar]],"-") -> 21% | U5: =IFERROR(BiayaPenjualan[[#This Row],[Apr]]/BiayaPenjualan[[#Totals],[Apr]],"-") -> 12% | V5: =IFERROR(BiayaPenjualan[[#This Row],[Mei]]/BiayaPenjualan[[#Totals],[Mei]],"-") -> 31% | W5: =IFERROR(BiayaPenjualan[[#This Row],[Jun]]/BiayaPenjualan[[#Totals],[Jun]],"-") -> 16% | X5: =IFERROR(BiayaPenjualan[[#This Row],[Jul]]/BiayaPenjualan[[#Totals],[Jul]],"-") -> 5% | Y5: =IFERROR(BiayaPenjualan[[#This Row],[Agu]]/BiayaPenjualan[[#Totals],[Agu]],"-") -> 12% | Z5: =IFERROR(BiayaPenjualan[[#This Row],[Sep]]/BiayaPenjualan[[#Totals],[Sep]],"-") -> 3% | AA5: =IFERROR(BiayaPenjualan[[#This Row],[Okt]]/BiayaPenjualan[[#Totals],[Okt]],"-") -> 47% | AB5: =IFERROR(BiayaPenjualan[[#This Row],[Nov]]/BiayaPenjualan[[#Totals],[Nov]],"-") -> 23% | AC5: =IFERROR(BiayaPenjualan[[#This Row],[Des]]/BiayaPenjualan[[#Totals],[Des]],"-") -> 14% | AD5: =IFERROR(BiayaPenjualan[[#This Row],[Tahunan]]/BiayaPenjualan[[#Totals],[Tahunan]],"-") -> 19%
B6: Biaya 2 | D6: Rp7,000 | E6: Rp5,000 | F6: Rp69,000 | G6: Rp32,000 | H6: Rp11,000 | I6: Rp30,000 | J6: Rp27,000 | K6: Rp32,000 | L6: Rp10,000 | M6: Rp41,000 | N6: Rp13,000 | O6: Rp105,000 | P6: =SUM(BiayaPenjualan[[#This Row],[Jan]:[Des]]) -> Rp382,000 | Q6: 18% | R6: =IFERROR(BiayaPenjualan[[#This Row],[Jan]]/BiayaPenjualan[[#Totals],[Jan]],"-") -> 3% | S6: =IFERROR(BiayaPenjualan[[#This Row],[Feb]]/BiayaPenjualan[[#Totals],[Feb]],"-") -> 1% | T6: =IFERROR(BiayaPenjualan[[#This Row],[Mar]]/BiayaPenjualan[[#Totals],[Mar]],"-") -> 22% | U6: =IFERROR(BiayaPenjualan[[#This Row],[Apr]]/BiayaPenjualan[[#Totals],[Apr]],"-") -> 13% | V6: =IFERROR(BiayaPenjualan[[#This Row],[Mei]]/BiayaPenjualan[[#Totals],[Mei]],"-") -> 3% | W6: =IFERROR(BiayaPenjualan[[#This Row],[Jun]]/BiayaPenjualan[[#Totals],[Jun]],"-") -> 10% | X6: =IFERROR(BiayaPenjualan[[#This Row],[Jul]]/BiayaPenjualan[[#Totals],[Jul]],"-") -> 9% | Y6: =IFERROR(BiayaPenjualan[[#This Row],[Agu]]/BiayaPenjualan[[#Totals],[Agu]],"-") -> 14% | Z6: =IFERROR(BiayaPenjualan[[#This Row],[Sep]]/BiayaPenjualan[[#Totals],[Sep]],"-") -> 2% | AA6: =IFERROR(BiayaPenjualan[[#This Row],[Okt]]/BiayaPenjualan[[#Totals],[Okt]],"-") -> 15% | AB6: =IFERROR(BiayaPenjualan[[#This Row],[Nov]]/BiayaPenjualan[[#Totals],[Nov]],"-") -> 5% | AC6: =IFERROR(BiayaPenjualan[[#This Row],[Des]]/BiayaPenjualan[[#Totals],[Des]],"-") -> 23% | AD6: =IFERROR(BiayaPenjualan[[#This Row],[Tahunan]]/BiayaPenjualan[[#Totals],[Tahunan]],"-") -> 10%
B7: Biaya 3 | D7: Rp99,000 | E7: Rp95,000 | F7: Rp51,000 | G7: Rp90,000 | H7: Rp21,000 | I7: Rp34,000 | J7: Rp30,000 | K7: Rp24,000 | L7: Rp109,000 | M7: Rp16,000 | N7: Rp21,000 | O7: Rp52,000 | P7: =SUM(BiayaPenjualan[[#This Row],[Jan]:[Des]]) -> Rp642,000 | Q7: 19% | R7: =IFERROR(BiayaPenjualan[[#This Row],[Jan]]/BiayaPenjualan[[#Totals],[Jan]],"-") -> 37% | S7: =IFERROR(BiayaPenjualan[[#This Row],[Feb]]/BiayaPenjualan[[#Totals],[Feb]],"-") -> 27% | T7: =IFERROR(BiayaPenjualan[[#This Row],[Mar]]/BiayaPenjualan[[#Totals],[Mar]],"-") -> 16% | U7: =IFERROR(BiayaPenjualan[[#This Row],[Apr]]/BiayaPenjualan[[#Totals],[Apr]],"-") -> 37% | V7: =IFERROR(BiayaPenjualan[[#This Row],[Mei]]/BiayaPenjualan[[#Totals],[Mei]],"-") -> 5% | W7: =IFERROR(BiayaPenjualan[[#This Row],[Jun]]/BiayaPenjualan[[#Totals],[Jun]],"-") -> 11% | X7: =IFERROR(BiayaPenjualan[[#This Row],[Jul]]/BiayaPenjualan[[#Totals],[Jul]],"-") -> 10% | Y7: =IFERROR(BiayaPenjualan[[#This Row],[Agu]]/BiayaPenjualan[[#Totals],[Agu]],"-") -> 11% | Z7: =IFERROR(BiayaPenjualan[[#This Row],[Sep]]/BiayaPenjualan[[#Totals],[Sep]],"-") -> 26% | AA7: =IFERROR(BiayaPenjualan[[#This Row],[Okt]]/BiayaPenjualan[[#Totals],[Okt]],"-") -> 6% | AB7: =IFERROR(BiayaPenjualan[[#This Row],[Nov]]/BiayaPenjualan[[#Totals],[Nov]],"-") -> 8% | AC7: =IFERROR(BiayaPenjualan[[#This Row],[Des]]/BiayaPenjualan[[#Totals],[Des]],"-") -> 11% | AD7: =IFERROR(BiayaPenjualan[[#This Row],[Tahunan]]/BiayaPenjualan[[#Totals],[Tahunan]],"-") -> 17%
B8: Biaya 4 | D8: Rp13,000 | E8: Rp28,000 | F8: Rp15,000 | G8: Rp8,000 | H8: Rp84,000 | I8: Rp12,000 | J8: Rp54,000 | K8: Rp72,000 | L8: Rp49,000 | M8: Rp24,000 | N8: Rp60,000 | O8: Rp39,000 | P8: =SUM(BiayaPenjualan[[#This Row],[Jan]:[Des]]) -> Rp458,000 | Q8: 11% | R8: =IFERROR(BiayaPenjualan[[#This Row],[Jan]]/BiayaPenjualan[[#Totals],[Jan]],"-") -> 5% | S8: =IFERROR(BiayaPenjualan[[#This Row],[Feb]]/BiayaPenjualan[[#Totals],[Feb]],"-") -> 8% | T8: =IFERROR(BiayaPenjualan[[#This Row],[Mar]]/BiayaPenjualan[[#Totals],[Mar]],"-") -> 5% | U8: =IFERROR(BiayaPenjualan[[#This Row],[Apr]]/BiayaPenjualan[[#Totals],[Apr]],"-") -> 3% | V8: =IFERROR(BiayaPenjualan[[#This Row],[Mei]]/BiayaPenjualan[[#Totals],[Mei]],"-") -> 21% | W8: =IFERROR(BiayaPenjualan[[#This Row],[Jun]]/BiayaPenjualan[[#Totals],[Jun]],"-") -> 4% | X8: =IFERROR(BiayaPenjualan[[#This Row],[Jul]]/BiayaPenjualan[[#Totals],[Jul]],"-") -> 18% | Y8: =IFERROR(BiayaPenjualan[[#This Row],[Agu]]/BiayaPenjualan[[#Totals],[Agu]],"-") -> 32% | Z8: =IFERROR(BiayaPenjualan[[#This Row],[Sep]]/BiayaPenjualan[[#Totals],[Sep]],"-") -> 12% | AA8: =IFERROR(BiayaPenjualan[[#This Row],[Okt]]/BiayaPenjualan[[#Totals],[Okt]],"-") -> 9% | AB8: =IFERROR(BiayaPenjualan[[#This Row],[Nov]]/BiayaPenjualan[[#Totals],[Nov]],"-") -> 23% | AC8: =IFERROR(BiayaPenjualan[[#This Row],[Des]]/BiayaPenjualan[[#Totals],[Des]],"-") -> 9% | AD8: =IFERROR(BiayaPenjualan[[#This Row],[Tahunan]]/BiayaPenjualan[[#Totals],[Tahunan]],"-") -> 12%
B9: Biaya 5 | D9: Rp34,000 | E9: Rp78,000 | F9: Rp43,000 | G9: Rp30,000 | H9: Rp77,000 | I9: Rp54,000 | J9: Rp26,000 | K9: Rp13,000 | L9: Rp56,000 | M9: Rp30,000 | N9: Rp40,000 | O9: Rp63,000 | P9: =SUM(BiayaPenjualan[[#This Row],[Jan]:[Des]]) -> Rp544,000 | Q9: 20% | R9: =IFERROR(BiayaPenjualan[[#This Row],[Jan]]/BiayaPenjualan[[#Totals],[Jan]],"-") -> 13% | S9: =IFERROR(BiayaPenjualan[[#This Row],[Feb]]/BiayaPenjualan[[#Totals],[Feb]],"-") -> 22% | T9: =IFERROR(BiayaPenjualan[[#This Row],[Mar]]/BiayaPenjualan[[#Totals],[Mar]],"-") -> 14% | U9: =IFERROR(BiayaPenjualan[[#This Row],[Apr]]/BiayaPenjualan[[#Totals],[Apr]],"-") -> 12% | V9: =IFERROR(BiayaPenjualan[[#This Row],[Mei]]/BiayaPenjualan[[#Totals],[Mei]],"-") -> 19% | W9: =IFERROR(BiayaPenjualan[[#This Row],[Jun]]/BiayaPenjualan[[#Totals],[Jun]],"-") -> 17% | X9: =IFERROR(BiayaPenjualan[[#This Row],[Jul]]/BiayaPenjualan[[#Totals],[Jul]],"-") -> 9% | Y9: =IFERROR(BiayaPenjualan[[#This Row],[Agu]]/BiayaPenjualan[[#Totals],[Agu]],"-") -> 6% | Z9: =IFERROR(BiayaPenjualan[[#This Row],[Sep]]/BiayaPenjualan[[#Totals],[Sep]],"-") -> 14% | AA9: =IFERROR(BiayaPenjualan[[#This Row],[Okt]]/BiayaPenjualan[[#Totals],[Okt]],"-") -> 11% | AB9: =IFERROR(BiayaPenjualan[[#This Row],[Nov]]/BiayaPenjualan[[#Totals],[Nov]],"-") -> 15% | AC9: =IFERROR(BiayaPenjualan[[#This Row],[Des]]/BiayaPenjualan[[#Totals],[Des]],"-") -> 14% | AD9: =IFERROR(BiayaPenjualan[[#This Row],[Tahunan]]/BiayaPenjualan[[#Totals],[Tahunan]],"-") -> 14%
B10: Biaya 6 | D10: Rp33,000 | E10: Rp61,000 | F10: Rp42,000 | G10: Rp43,000 | H10: Rp19,000 | I10: Rp94,000 | J10: Rp46,000 | K10: Rp15,000 | L10: Rp55,000 | M10: Rp15,000 | N10: Rp37,000 | O10: Rp89,000 | P10: =SUM(BiayaPenjualan[[#This Row],[Jan]:[Des]]) -> Rp549,000 | Q10: 10% | R10: =IFERROR(BiayaPenjualan[[#This Row],[Jan]]/BiayaPenjualan[[#Totals],[Jan]],"-") -> 12% | S10: =IFERROR(BiayaPenjualan[[#This Row],[Feb]]/BiayaPenjualan[[#Totals],[Feb]],"-") -> 17% | T10: =IFERROR(BiayaPenjualan[[#This Row],[Mar]]/BiayaPenjualan[[#Totals],[Mar]],"-") -> 13% | U10: =IFERROR(BiayaPenjualan[[#This Row],[Apr]]/BiayaPenjualan[[#Totals],[Apr]],"-") -> 18% | V10: =IFERROR(BiayaPenjualan[[#This Row],[Mei]]/BiayaPenjualan[[#Totals],[Mei]],"-") -> 5% | W10: =IFERROR(BiayaPenjualan[[#This Row],[Jun]]/BiayaPenjualan[[#Totals],[Jun]],"-") -> 30% | X10: =IFERROR(BiayaPenjualan[[#This Row],[Jul]]/BiayaPenjualan[[#Totals],[Jul]],"-") -> 15% | Y10: =IFERROR(BiayaPenjualan[[#This Row],[Agu]]/BiayaPenjualan[[#Totals],[Agu]],"-") -> 7% | Z10: =IFERROR(BiayaPenjualan[[#This Row],[Sep]]/BiayaPenjualan[[#Totals],[Sep]],"-") -> 13% | AA10: =IFERROR(BiayaPenjualan[[#This Row],[Okt]]/BiayaPenjualan[[#Totals],[Okt]],"-") -> 5% | AB10: =IFERROR(BiayaPenjualan[[#This Row],[Nov]]/BiayaPenjualan[[#Totals],[Nov]],"-") -> 14% | AC10: =IFERROR(BiayaPenjualan[[#This Row],[Des]]/BiayaPenjualan[[#Totals],[Des]],"-") -> 20% | AD10: =IFERROR(BiayaPenjualan[[#This Row],[Tahunan]]/BiayaPenjualan[[#Totals],[Tahunan]],"-") -> 14%
B11: Biaya 7 | D11: Rp18,000 | E11: Rp11,000 | F11: Rp30,000 | G11: Rp9,000 | H11: Rp62,000 | I11: Rp39,000 | J11: Rp102,000 | K11: Rp44,000 | L11: Rp121,000 | M11: Rp19,000 | N11: Rp33,000 | O11: Rp40,000 | P11: =SUM(BiayaPenjualan[[#This Row],[Jan]:[Des]]) -> Rp528,000 | Q11: 10% | R11: =IFERROR(BiayaPenjualan[[#This Row],[Jan]]/BiayaPenjualan[[#Totals],[Jan]],"-") -> 7% | S11: =IFERROR(BiayaPenjualan[[#This Row],[Feb]]/BiayaPenjualan[[#Totals],[Feb]],"-") -> 3% | T11: =IFERROR(BiayaPenjualan[[#This Row],[Mar]]/BiayaPenjualan[[#Totals],[Mar]],"-") -> 10% | U11: =IFERROR(BiayaPenjualan[[#This Row],[Apr]]/BiayaPenjualan[[#Totals],[Apr]],"-") -> 4% | V11: =IFERROR(BiayaPenjualan[[#This Row],[Mei]]/BiayaPenjualan[[#Totals],[Mei]],"-") -> 16% | W11: =IFERROR(BiayaPenjualan[[#This Row],[Jun]]/BiayaPenjualan[[#Totals],[Jun]],"-") -> 13% | X11: =IFERROR(BiayaPenjualan[[#This Row],[Jul]]/BiayaPenjualan[[#Totals],[Jul]],"-") -> 34% | Y11: =IFERROR(BiayaPenjualan[[#This Row],[Agu]]/BiayaPenjualan[[#Totals],[Agu]],"-") -> 19% | Z11: =IFERROR(BiayaPenjualan[[#This Row],[Sep]]/BiayaPenjualan[[#Totals],[Sep]],"-") -> 29% | AA11: =IFERROR(BiayaPenjualan[[#This Row],[Okt]]/BiayaPenjualan[[#Totals],[Okt]],"-") -> 7% | AB11: =IFERROR(BiayaPenjualan[[#This Row],[Nov]]/BiayaPenjualan[[#Totals],[Nov]],"-") -> 13% | AC11: =IFERROR(BiayaPenjualan[[#This Row],[Des]]/BiayaPenjualan[[#Totals],[Des]],"-") -> 9% | AD11: =IFERROR(BiayaPenjualan[[#This Row],[Tahunan]]/BiayaPenjualan[[#Totals],[Tahunan]],"-") -> 14%
B12: TOTAL BIAYA PENJUALAN | D12: =SUBTOTAL(109,BiayaPenjualan[Jan]) -> Rp265,000 | E12: =SUBTOTAL(109,BiayaPenjualan[Feb]) -> Rp356,000 | F12: =SUBTOTAL(109,BiayaPenjualan[Mar]) -> Rp315,000 | G12: =SUBTOTAL(109,BiayaPenjualan[Apr]) -> Rp241,000 | H12: =SUBTOTAL(109,BiayaPenjualan[Mei]) -> Rp399,000 | I12: =SUBTOTAL(109,BiayaPenjualan[Jun]) -> Rp312,000 | J12: =SUBTOTAL(109,BiayaPenjualan[Jul]) -> Rp299,000 | K12: =SUBTOTAL(109,BiayaPenjualan[Agu]) -> Rp226,000 | L12: =SUBTOTAL(109,BiayaPenjualan[Sep]) -> Rp414,000 | M12: =SUBTOTAL(109,BiayaPenjualan[Okt]) -> Rp274,000 | N12: =SUBTOTAL(109,BiayaPenjualan[Nov]) -> Rp264,000 | O12: =SUBTOTAL(109,BiayaPenjualan[Des]) -> Rp453,000 | P12: =SUBTOTAL(109,BiayaPenjualan[Tahunan]) -> Rp3,818,000 | Q12: =SUBTOTAL(109,BiayaPenjualan[Indeks %]) -> 100% | R12: =SUBTOTAL(109,BiayaPenjualan[Jan %]) -> 100% | S12: =SUBTOTAL(109,BiayaPenjualan[Feb %]) -> 100% | T12: =SUBTOTAL(109,BiayaPenjualan[Mar %]) -> 100% | U12: =SUBTOTAL(109,BiayaPenjualan[Apr %]) -> 100% | V12: =SUBTOTAL(109,BiayaPenjualan[Mei %]) -> 100% | W12: =SUBTOTAL(109,BiayaPenjualan[Jun %]) -> 100% | X12: =SUBTOTAL(109,BiayaPenjualan[Jul %]) -> 100% | Y12: =SUBTOTAL(109,BiayaPenjualan[Agu %]) -> 100% | Z12: =SUBTOTAL(109,BiayaPenjualan[Sep %]) -> 100% | AA12: =SUBTOTAL(109,BiayaPenjualan[Okt %]) -> 100% | AB12: =SUBTOTAL(109,BiayaPenjualan[Nov %]) -> 100% | AC12: =SUBTOTAL(109,BiayaPenjualan[Des %]) -> 100% | AD12: =SUBTOTAL(109,BiayaPenjualan[Tahun %]) -> 100%
B14: Laba Kotor | D14: =Pendapatan[[#Totals],[Jan]]-BiayaPenjualan[[#Totals],[Jan]] -> Rp359,000 | E14: =Pendapatan[[#Totals],[Feb]]-BiayaPenjualan[[#Totals],[Feb]] -> Rp380,000 | F14: =Pendapatan[[#Totals],[Mar]]-BiayaPenjualan[[#Totals],[Mar]] -> Rp505,000 | G14: =Pendapatan[[#Totals],[Apr]]-BiayaPenjualan[[#Totals],[Apr]] -> Rp370,000 | H14: =Pendapatan[[#Totals],[Mei]]-BiayaPenjualan[[#Totals],[Mei]] -> Rp413,000 | I14: =Pendapatan[[#Totals],[Jun]]-BiayaPenjualan[[#Totals],[Jun]] -> Rp266,000 | J14: =Pendapatan[[#Totals],[Jul]]-BiayaPenjualan[[#Totals],[Jul]] -> Rp298,000 | K14: =Pendapatan[[#Totals],[Agu]]-BiayaPenjualan[[#Totals],[Agu]] -> Rp449,000 | L14: =Pendapatan[[#Totals],[Sep]]-BiayaPenjualan[[#Totals],[Sep]] -> Rp330,000 | M14: =Pendapatan[[#Totals],[Okt]]-BiayaPenjualan[[#Totals],[Okt]] -> Rp407,000 | N14: =Pendapatan[[#Totals],[Nov]]-BiayaPenjualan[[#Totals],[Nov]] -> Rp475,000 | O14: =Pendapatan[[#Totals],[Des]]-BiayaPenjualan[[#Totals],[Des]] -> Rp590,000 | P14: =Pendapatan[[#Totals],[Tahunan]]-BiayaPenjualan[[#Totals],[Tahunan]] -> Rp4,842,000 | R14: =D14/$P$14 -> 7% | S14: 8% | T14: 10% | U14: 8% | V14: 9% | W14: 5% | X14: 6% | Y14: 9% | Z14: 7% | AA14: 8% | AB14: 10% | AC14: 12% | AD14: 100%

Sheet Pengeluaran
B1: =Judul_Periode_Perkiraan -> Dua Belas Bulan | AD1: =Nama_Perusahaan -> Nama Perusahaan
B2: ='Pendapatan (Penjualan)'!$B$2 -> PERKIRAAN LABA & RUGI | AB2: TAHUN FISKAL: | AC2: =FYMulaiBulan -> JAN | AD2: =FYTahunMulai -> 2017
D3: =UPPER(TEXT(DATE(FYTahunMulai,FYNoBulan,1),"mmm-yy")) -> JAN-17 | E3: =UPPER(TEXT(DATE(FYTahunMulai,FYNoBulan+1,1),"mmm-yy")) -> FEB-17 | F3: =UPPER(TEXT(DATE(FYTahunMulai,FYNoBulan+2,1),"mmm-yy")) -> MAR-17 | G3: =UPPER(TEXT(DATE(FYTahunMulai,FYNoBulan+3,1),"mmm-yy")) -> APR-17 | H3: =UPPER(TEXT(DATE(FYTahunMulai,FYNoBulan+4,1),"mmm-yy")) -> MEI-17 | I3: =UPPER(TEXT(DATE(FYTahunMulai,FYNoBulan+5,1),"mmm-yy")) -> JUN-17 | J3: =UPPER(TEXT(DATE(FYTahunMulai,FYNoBulan+6,1),"mmm-yy")) -> JUL-17 | K3: =UPPER(TEXT(DATE(FYTahunMulai,FYNoBulan+7,1),"mmm-yy")) -> AGU-17 | L3: =UPPER(TEXT(DATE(FYTahunMulai,FYNoBulan+8,1),"mmm-yy")) -> SEP-17 | M3: =UPPER(TEXT(DATE(FYTahunMulai,FYNoBulan+9,1),"mmm-yy")) -> OKT-17 | N3: =UPPER(TEXT(DATE(FYTahunMulai,FYNoBulan+10,1),"mmm-yy")) -> NOV-17 | O3: =UPPER(TEXT(DATE(FYTahunMulai,FYNoBulan+11,1),"mmm-yy")) -> DES-17 | P3: TAHUNAN | Q3: IND % | R3: =LEFT(D3,3)&" %" -> JAN % | S3: =LEFT(E3,3)&" %" -> FEB % | T3: MAR % | U3: APR % | V3: MEI % | W3: JUN % | X3: JUL % | Y3: AGU % | Z3: SEP % | AA3: OKT % | AB3: NOV % | AC3: DES % | AD3: TAHUN %
B4: PENGELUARAN | C4: TREN | D4: Kolom1 | E4: Feb | F4: Mar | G4: Apr | H4: Mei | I4: Jun | J4: Jul | K4: Agu | L4: Sep | M4: Okt | N4: Nov | O4: Des | P4: Tahunan | Q4: Indeks % | R4: Jan % | S4: Feb % | T4: Mar % | U4: Apr % | V4: Mei % | W4: Jun % | X4: Jul % | Y4: Agu % | Z4: Sep % | AA4: Okt % | AB4: Nov % | AC4: Des % | AD4: Tahun %
B5: Pengeluaran gaji | D5: Rp10,000 | E5: Rp18,000 | F5: Rp13,000 | G5: Rp8,000 | H5: Rp22,000 | I5: Rp18,000 | J5: Rp8,000 | K5: Rp17,000 | L5: Rp20,000 | M5: Rp8,000 | N5: Rp4,000 | O5: Rp12,000 | P5: =SUM(tblPengeluaran[[#This Row],[Kolom1]:[Des]]) -> Rp158,000 | Q5: 12% | R5: =tblPengeluaran[[#This Row],[Kolom1]]/tblPengeluaran[[#Totals],[Kolom1]] -> 4% | S5: =tblPengeluaran[[#This Row],[Feb]]/tblPengeluaran[[#Totals],[Feb]] -> 9% | T5: =tblPengeluaran[[#This Row],[Mar]]/tblPengeluaran[[#Totals],[Mar]] -> 5% | U5: =tblPengeluaran[[#This Row],[Apr]]/tblPengeluaran[[#Totals],[Apr]] -> 3% | V5: =tblPengeluaran[[#This Row],[Mei]]/tblPengeluaran[[#Totals],[Mei]] -> 9% | W5: =tblPengeluaran[[#This Row],[Jun]]/tblPengeluaran[[#Totals],[Jun]] -> 7% | X5: =tblPengeluaran[[#This Row],[Jul]]/tblPengeluaran[[#Totals],[Jul]] -> 3% | Y5: =tblPengeluaran[[#This Row],[Agu]]/tblPengeluaran[[#Totals],[Agu]] -> 7% | Z5: =tblPengeluaran[[#This Row],[Sep]]/tblPengeluaran[[#Totals],[Sep]] -> 9% | AA5: =tblPengeluaran[[#This Row],[Okt]]/tblPengeluaran[[#Totals],[Okt]] -> 3% | AB5: =tblPengeluaran[[#This Row],[Nov]]/tblPengeluaran[[#Totals],[Nov]] -> 1% | AC5: =tblPengeluaran[[#This Row],[Des]]/tblPengeluaran[[#Totals],[Des]] -> 5% | AD5: =tblPengeluaran[[#This Row],[Tahunan]]/tblPengeluaran[[#Totals],[Tahunan]] -> 5%
B6: Pengeluaran daftar gaji | D6: Rp23,000 | E6: Rp11,000 | F6: Rp7,000 | G6: Rp14,000 | H6: Rp12,000 | I6: Rp19,000 | J6: Rp19,000 | K6: Rp4,000 | L6: Rp7,000 | M6: Rp13,000 | N6: Rp25,000 | O6: Rp5,000 | P6: =SUM(tblPengeluaran[[#This Row],[Kolom1]:[Des]]) -> Rp159,000 | Q6: 9% | R6: =tblPengeluaran[[#This Row],[Kolom1]]/tblPengeluaran[[#Totals],[Kolom1]] -> 10% | S6: =tblPengeluaran[[#This Row],[Feb]]/tblPengeluaran[[#Totals],[Feb]] -> 5% | T6: =tblPengeluaran[[#This Row],[Mar]]/tblPengeluaran[[#Totals],[Mar]] -> 3% | U6: =tblPengeluaran[[#This Row],[Apr]]/tblPengeluaran[[#Totals],[Apr]] -> 5% | V6: =tblPengeluaran[[#This Row],[Mei]]/tblPengeluaran[[#Totals],[Mei]] -> 5% | W6: =tblPengeluaran[[#This Row],[Jun]]/tblPengeluaran[[#Totals],[Jun]] -> 7% | X6: =tblPengeluaran[[#This Row],[Jul]]/tblPengeluaran[[#Totals],[Jul]] -> 7% | Y6: =tblPengeluaran[[#This Row],[Agu]]/tblPengeluaran[[#Totals],[Agu]] -> 2% | Z6: =tblPengeluaran[[#This Row],[Sep]]/tblPengeluaran[[#Totals],[Sep]] -> 3% | AA6: =tblPengeluaran[[#This Row],[Okt]]/tblPengeluaran[[#Totals],[Okt]] -> 5% | AB6: =tblPengeluaran[[#This Row],[Nov]]/tblPengeluaran[[#Totals],[Nov]] -> 8% | AC6: =tblPengeluaran[[#This Row],[Des]]/tblPengeluaran[[#Totals],[Des]] -> 2% | AD6: =tblPengeluaran[[#This Row],[Tahunan]]/tblPengeluaran[[#Totals],[Tahunan]] -> 5%
B7: Layanan luar | D7: Rp23,000 | E7: Rp20,000 | F7: Rp3,000 | G7: Rp16,000 | H7: Rp10,000 | I7: Rp5,000 | J7: Rp20,000 | K7: Rp7,000 | L7: Rp4,000 | M7: Rp22,000 | N7: Rp13,000 | O7: Rp14,000 | P7: =SUM(tblPengeluaran[[#This Row],[Kolom1]:[Des]]) -> Rp157,000 | Q7: 2% | R7: =tblPengeluaran[[#This Row],[Kolom1]]/tblPengeluaran[[#Totals],[Kolom1]] -> 10% | S7: =tblPengeluaran[[#This Row],[Feb]]/tblPengeluaran[[#Totals],[Feb]] -> 10% | T7: =tblPengeluaran[[#This Row],[Mar]]/tblPengeluaran[[#Totals],[Mar]] -> 1% | U7: =tblPengeluaran[[#This Row],[Apr]]/tblPengeluaran[[#Totals],[Apr]] -> 6% | V7: =tblPengeluaran[[#This Row],[Mei]]/tblPengeluaran[[#Totals],[Mei]] -> 4% | W7: =tblPengeluaran[[#This Row],[Jun]]/tblPengeluaran[[#Totals],[Jun]] -> 2% | X7: =tblPengeluaran[[#This Row],[Jul]]/tblPengeluaran[[#Totals],[Jul]] -> 8% | Y7: =tblPengeluaran[[#This Row],[Agu]]/tblPengeluaran[[#Totals],[Agu]] -> 3% | Z7: =tblPengeluaran[[#This Row],[Sep]]/tblPengeluaran[[#Totals],[Sep]] -> 2% | AA7: =tblPengeluaran[[#This Row],[Okt]]/tblPengeluaran[[#Totals],[Okt]] -> 8% | AB7: =tblPengeluaran[[#This Row],[Nov]]/tblPengeluaran[[#Totals],[Nov]] -> 4% | AC7: =tblPengeluaran[[#This Row],[Des]]/tblPengeluaran[[#Totals],[Des]] -> 6% | AD7: =tblPengeluaran[[#This Row],[Tahunan]]/tblPengeluaran[[#Totals],[Tahunan]] -> 5%
B8: Persediaan (kantor dan operasi) | D8: Rp19,000 | E8: Rp4,000 | F8: Rp7,000 | G8: Rp14,000 | H8: Rp22,000 | I8: Rp10,000 | J8: Rp22,000 | K8: Rp5,000 | L8: Rp4,000 | M8: Rp12,000 | N8: Rp18,000 | O8: Rp24,000 | P8: =SUM(tblPengeluaran[[#This Row],[Kolom1]:[Des]]) -> Rp161,000 | Q8: 8% | R8: =tblPengeluaran[[#This Row],[Kolom1]]/tblPengeluaran[[#Totals],[Kolom1]] -> 8% | S8: =tblPengeluaran[[#This Row],[Feb]]/tblPengeluaran[[#Totals],[Feb]] -> 2% | T8: =tblPengeluaran[[#This Row],[Mar]]/tblPengeluaran[[#Totals],[Mar]] -> 3% | U8: =tblPengeluaran[[#This Row],[Apr]]/tblPengeluaran[[#Totals],[Apr]] -> 5% | V8: =tblPengeluaran[[#This Row],[Mei]]/tblPengeluaran[[#Totals],[Mei]] -> 9% | W8: =tblPengeluaran[[#This Row],[Jun]]/tblPengeluaran[[#Totals],[Jun]] -> 4% | X8: =tblPengeluaran[[#This Row],[Jul]]/tblPengeluaran[[#Totals],[Jul]] -> 8% | Y8: =tblPengeluaran[[#This Row],[Agu]]/tblPengeluaran[[#Totals],[Agu]] -> 2% | Z8: =tblPengeluaran[[#This Row],[Sep]]/tblPengeluaran[[#Totals],[Sep]] -> 2% | AA8: =tblPengeluaran[[#This Row],[Okt]]/tblPengeluaran[[#Totals],[Okt]] -> 5% | AB8: =tblPengeluaran[[#This Row],[Nov]]/tblPengeluaran[[#Totals],[Nov]] -> 6% | AC8: =tblPengeluaran[[#This Row],[Des]]/tblPengeluaran[[#Totals],[Des]] -> 10% | AD8: =tblPengeluaran[[#This Row],[Tahunan]]/tblPengeluaran[[#Totals],[Tahunan]] -> 5%
B9: Perbaikan dan pemeliharaan | D9: Rp11,000 | E9: Rp11,000 | F9: Rp17,000 | G9: Rp12,000 | H9: Rp2,000 | I9: Rp14,000 | J9: Rp12,000 | K9: Rp10,000 | L9: Rp18,000 | M9: Rp11,000 | N9: Rp23,000 | O9: Rp11,000 | P9: =SUM(tblPengeluaran[[#This Row],[Kolom1]:[Des]]) -> Rp152,000 | Q9: 3% | R9: =tblPengeluaran[[#This Row],[Kolom1]]/tblPengeluaran[[#Totals],[Kolom1]] -> 5% | S9: =tblPengeluaran[[#This Row],[Feb]]/tblPengeluaran[[#Totals],[Feb]] -> 5% | T9: =tblPengeluaran[[#This Row],[Mar]]/tblPengeluaran[[#Totals],[Mar]] -> 7% | U9: =tblPengeluaran[[#This Row],[Apr]]/tblPengeluaran[[#Totals],[Apr]] -> 5% | V9: =tblPengeluaran[[#This Row],[Mei]]/tblPengeluaran[[#Totals],[Mei]] -> 1% | W9: =tblPengeluaran[[#This Row],[Jun]]/tblPengeluaran[[#Totals],[Jun]] -> 5% | X9: =tblPengeluaran[[#This Row],[Jul]]/tblPengeluaran[[#Totals],[Jul]] -> 5% | Y9: =tblPengeluaran[[#This Row],[Agu]]/tblPengeluaran[[#Totals],[Agu]] -> 4% | Z9: =tblPengeluaran[[#This Row],[Sep]]/tblPengeluaran[[#Totals],[Sep]] -> 8% | AA9: =tblPengeluaran[[#This Row],[Okt]]/tblPengeluaran[[#Totals],[Okt]] -> 4% | AB9: =tblPengeluaran[[#This Row],[Nov]]/tblPengeluaran[[#Totals],[Nov]] -> 8% | AC9: =tblPengeluaran[[#This Row],[Des]]/tblPengeluaran[[#Totals],[Des]] -> 5% | AD9: =tblPengeluaran[[#This Row],[Tahunan]]/tblPengeluaran[[#Totals],[Tahunan]] -> 5%
B10: Iklan | D10: Rp2,000 | E10: Rp16,000 | F10: Rp6,000 | G10: Rp13,000 | H10: Rp11,000 | I10: Rp22,000 | J10: Rp21,000 | K10: Rp3,000 | L10: Rp12,000 | M10: Rp7,000 | N10: Rp17,000 | O10: Rp20,000 | P10: =SUM(tblPengeluaran[[#This Row],[Kolom1]:[Des]]) -> Rp150,000 | Q10: 15% | R10: =tblPengeluaran[[#This Row],[Kolom1]]/tblPengeluaran[[#Totals],[Kolom1]] -> 1% | S10: =tblPengeluaran[[#This Row],[Feb]]/tblPengeluaran[[#Totals],[Feb]] -> 8% | T10: =tblPengeluaran[[#This Row],[Mar]]/tblPengeluaran[[#Totals],[Mar]] -> 2% | U10: =tblPengeluaran[[#This Row],[Apr]]/tblPengeluaran[[#Totals],[Apr]] -> 5% | V10: =tblPengeluaran[[#This Row],[Mei]]/tblPengeluaran[[#Totals],[Mei]] -> 4% | W10: =tblPengeluaran[[#This Row],[Jun]]/tblPengeluaran[[#Totals],[Jun]] -> 8% | X10: =tblPengeluaran[[#This Row],[Jul]]/tblPengeluaran[[#Totals],[Jul]] -> 8% | Y10: =tblPengeluaran[[#This Row],[Agu]]/tblPengeluaran[[#Totals],[Agu]] -> 1% | Z10: =tblPengeluaran[[#This Row],[Sep]]/tblPengeluaran[[#Totals],[Sep]] -> 5% | AA10: =tblPengeluaran[[#This Row],[Okt]]/tblPengeluaran[[#Totals],[Okt]] -> 3% | AB10: =tblPengeluaran[[#This Row],[Nov]]/tblPengeluaran[[#Totals],[Nov]] -> 6% | AC10: =tblPengeluaran[[#This Row],[Des]]/tblPengeluaran[[#Totals],[Des]] -> 9% | AD10: =tblPengeluaran[[#This Row],[Tahunan]]/tblPengeluaran[[#Totals],[Tahunan]] -> 5%
B11: Mobil, pengiriman dan perjalanan | D11: Rp8,000 | E11: Rp17,000 | F11: Rp11,000 | G11: Rp11,000 | H11: Rp21,000 | I11: Rp9,000 | J11: Rp20,000 | K11: Rp3,000 | L11: Rp14,000 | M11: Rp22,000 | N11: Rp16,000 | O11: Rp12,000 | P11: =SUM(tblPengeluaran[[#This Row],[Kolom1]:[Des]]) -> Rp164,000 | Q11: 12% | R11: =tblPengeluaran[[#This Row],[Kolom1]]/tblPengeluaran[[#Totals],[Kolom1]] -> 3% | S11: =tblPengeluaran[[#This Row],[Feb]]/tblPengeluaran[[#Totals],[Feb]] -> 8% | T11: =tblPengeluaran[[#This Row],[Mar]]/tblPengeluaran[[#Totals],[Mar]] -> 4% | U11: =tblPengeluaran[[#This Row],[Apr]]/tblPengeluaran[[#Totals],[Apr]] -> 4% | V11: =tblPengeluaran[[#This Row],[Mei]]/tblPengeluaran[[#Totals],[Mei]] -> 8% | W11: =tblPengeluaran[[#This Row],[Jun]]/tblPengeluaran[[#Totals],[Jun]] -> 3% | X11: =tblPengeluaran[[#This Row],[Jul]]/tblPengeluaran[[#Totals],[Jul]] -> 8% | Y11: =tblPengeluaran[[#This Row],[Agu]]/tblPengeluaran[[#Totals],[Agu]] -> 1% | Z11: =tblPengeluaran[[#This Row],[Sep]]/tblPengeluaran[[#Totals],[Sep]] -> 6% | AA11: =tblPengeluaran[[#This Row],[Okt]]/tblPengeluaran[[#Totals],[Okt]] -> 8% | AB11: =tblPengeluaran[[#This Row],[Nov]]/tblPengeluaran[[#Totals],[Nov]] -> 5% | AC11: =tblPengeluaran[[#This Row],[Des]]/tblPengeluaran[[#Totals],[Des]] -> 5% | AD11: =tblPengeluaran[[#This Row],[Tahunan]]/tblPengeluaran[[#Totals],[Tahunan]] -> 5%
B12: Akuntansi dan hukum | D12: Rp5,000 | E12: Rp13,000 | F12: Rp6,000 | G12: Rp15,000 | H12: Rp19,000 | I12: Rp10,000 | J12: Rp12,000 | K12: Rp9,000 | L12: Rp15,000 | M12: Rp16,000 | N12: Rp4,000 | O12: Rp9,000 | P12: =SUM(tblPengeluaran[[#This Row],[Kolom1]:[Des]]) -> Rp133,000 | Q12: 9% | R12: =tblPengeluaran[[#This Row],[Kolom1]]/tblPengeluaran[[#Totals],[Kolom1]] -> 2% | S12: =tblPengeluaran[[#This Row],[Feb]]/tblPengeluaran[[#Totals],[Feb]] -> 6% | T12: =tblPengeluaran[[#This Row],[Mar]]/tblPengeluaran[[#Totals],[Mar]] -> 2% | U12: =tblPengeluaran[[#This Row],[Apr]]/tblPengeluaran[[#Totals],[Apr]] -> 6% | V12: =tblPengeluaran[[#This Row],[Mei]]/tblPengeluaran[[#Totals],[Mei]] -> 7% | W12: =tblPengeluaran[[#This Row],[Jun]]/tblPengeluaran[[#Totals],[Jun]] -> 4% | X12: =tblPengeluaran[[#This Row],[Jul]]/tblPengeluaran[[#Totals],[Jul]] -> 5% | Y12: =tblPengeluaran[[#This Row],[Agu]]/tblPengeluaran[[#Totals],[Agu]] -> 4% | Z12: =tblPengeluaran[[#This Row],[Sep]]/tblPengeluaran[[#Totals],[Sep]] -> 7% | AA12: =tblPengeluaran[[#This Row],[Okt]]/tblPengeluaran[[#Totals],[Okt]] -> 6% | AB12: =tblPengeluaran[[#This Row],[Nov]]/tblPengeluaran[[#Totals],[Nov]] -> 1% | AC12: =tblPengeluaran[[#This Row],[Des]]/tblPengeluaran[[#Totals],[Des]] -> 4% | AD12: =tblPengeluaran[[#This Row],[Tahunan]]/tblPengeluaran[[#Totals],[Tahunan]] -> 4%
B13: Sewa | D13: Rp8,000 | E13: Rp4,000 | F13: Rp23,000 | G13: Rp25,000 | H13: Rp10,000 | I13: Rp24,000 | J13: Rp22,000 | K13: Rp5,000 | L13: Rp12,000 | M13: Rp24,000 | N13: Rp24,000 | O13: Rp12,000 | P13: =SUM(tblPengeluaran[[#This Row],[Kolom1]:[Des]]) -> Rp193,000 | Q13: 1% | R13: =tblPengeluaran[[#This Row],[Kolom1]]/tblPengeluaran[[#Totals],[Kolom1]] -> 3% | S13: =tblPengeluaran[[#This Row],[Feb]]/tblPengeluaran[[#Totals],[Feb]] -> 2% | T13: =tblPengeluaran[[#This Row],[Mar]]/tblPengeluaran[[#Totals],[Mar]] -> 9% | U13: =tblPengeluaran[[#This Row],[Apr]]/tblPengeluaran[[#Totals],[Apr]] -> 10% | V13: =tblPengeluaran[[#This Row],[Mei]]/tblPengeluaran[[#Totals],[Mei]] -> 4% | W13: =tblPengeluaran[[#This Row],[Jun]]/tblPengeluaran[[#Totals],[Jun]] -> 9% | X13: =tblPengeluaran[[#This Row],[Jul]]/tblPengeluaran[[#Totals],[Jul]] -> 8% | Y13: =tblPengeluaran[[#This Row],[Agu]]/tblPengeluaran[[#Totals],[Agu]] -> 2% | Z13: =tblPengeluaran[[#This Row],[Sep]]/tblPengeluaran[[#Totals],[Sep]] -> 5% | AA13: =tblPengeluaran[[#This Row],[Okt]]/tblPengeluaran[[#Totals],[Okt]] -> 9% | AB13: =tblPengeluaran[[#This Row],[Nov]]/tblPengeluaran[[#Totals],[Nov]] -> 8% | AC13: =tblPengeluaran[[#This Row],[Des]]/tblPengeluaran[[#Totals],[Des]] -> 5% | AD13: =tblPengeluaran[[#This Row],[Tahunan]]/tblPengeluaran[[#Totals],[Tahunan]] -> 6%
B14: Telepon | D14: Rp25,000 | E14: Rp2,000 | F14: Rp12,000 | G14: Rp25,000 | H14: Rp10,000 | I14: Rp24,000 | J14: Rp3,000 | K14: Rp20,000 | L14: Rp3,000 | M14: Rp9,000 | N14: Rp20,000 | O14: Rp18,000 | P14: =SUM(tblPengeluaran[[#This Row],[Kolom1]:[Des]]) -> Rp171,000 | Q14: 1% | R14: =tblPengeluaran[[#This Row],[Kolom1]]/tblPengeluaran[[#Totals],[Kolom1]] -> 11% | S14: =tblPengeluaran[[#This Row],[Feb]]/tblPengeluaran[[#Totals],[Feb]] -> 1% | T14: =tblPengeluaran[[#This Row],[Mar]]/tblPengeluaran[[#Totals],[Mar]] -> 5% | U14: =tblPengeluaran[[#This Row],[Apr]]/tblPengeluaran[[#Totals],[Apr]] -> 10% | V14: =tblPengeluaran[[#This Row],[Mei]]/tblPengeluaran[[#Totals],[Mei]] -> 4% | W14: =tblPengeluaran[[#This Row],[Jun]]/tblPengeluaran[[#Totals],[Jun]] -> 9% | X14: =tblPengeluaran[[#This Row],[Jul]]/tblPengeluaran[[#Totals],[Jul]] -> 1% | Y14: =tblPengeluaran[[#This Row],[Agu]]/tblPengeluaran[[#Totals],[Agu]] -> 9% | Z14: =tblPengeluaran[[#This Row],[Sep]]/tblPengeluaran[[#Totals],[Sep]] -> 1% | AA14: =tblPengeluaran[[#This Row],[Okt]]/tblPengeluaran[[#Totals],[Okt]] -> 3% | AB14: =tblPengeluaran[[#This Row],[Nov]]/tblPengeluaran[[#Totals],[Nov]] -> 7% | AC14: =tblPengeluaran[[#This Row],[Des]]/tblPengeluaran[[#Totals],[Des]] -> 8% | AD14: =tblPengeluaran[[#This Row],[Tahunan]]/tblPengeluaran[[#Totals],[Tahunan]] -> 6%
B15: Kebutuhan Umum | D15: Rp16,000 | E15: Rp19,000 | F15: Rp9,000 | G15: Rp16,000 | H15: Rp13,000 | I15: Rp2,000 | J15: Rp4,000 | K15: Rp24,000 | L15: Rp16,000 | M15: Rp22,000 | N15: Rp7,000 | O15: Rp18,000 | P15: =SUM(tblPengeluaran[[#This Row],[Kolom1]:[Des]]) -> Rp166,000 | Q15: 1% | R15: =tblPengeluaran[[#This Row],[Kolom1]]/tblPengeluaran[[#Totals],[Kolom1]] -> 7% | S15: =tblPengeluaran[[#This Row],[Feb]]/tblPengeluaran[[#Totals],[Feb]] -> 9% | T15: =tblPengeluaran[[#This Row],[Mar]]/tblPengeluaran[[#Totals],[Mar]] -> 4% | U15: =tblPengeluaran[[#This Row],[Apr]]/tblPengeluaran[[#Totals],[Apr]] -> 6% | V15: =tblPengeluaran[[#This Row],[Mei]]/tblPengeluaran[[#Totals],[Mei]] -> 5% | W15: =tblPengeluaran[[#This Row],[Jun]]/tblPengeluaran[[#Totals],[Jun]] -> 1% | X15: =tblPengeluaran[[#This Row],[Jul]]/tblPengeluaran[[#Totals],[Jul]] -> 2% | Y15: =tblPengeluaran[[#This Row],[Agu]]/tblPengeluaran[[#Totals],[Agu]] -> 10% | Z15: =tblPengeluaran[[#This Row],[Sep]]/tblPengeluaran[[#Totals],[Sep]] -> 7% | AA15: =tblPengeluaran[[#This Row],[Okt]]/tblPengeluaran[[#Totals],[Okt]] -> 8% | AB15: =tblPengeluaran[[#This Row],[Nov]]/tblPengeluaran[[#Totals],[Nov]] -> 2% | AC15: =tblPengeluaran[[#This Row],[Des]]/tblPengeluaran[[#Totals],[Des]] -> 8% | AD15: =tblPengeluaran[[#This Row],[Tahunan]]/tblPengeluaran[[#Totals],[Tahunan]] -> 6%
B16: Asuransi | D16: Rp12,000 | E16: Rp9,000 | F16: Rp16,000 | G16: Rp19,000 | H16: Rp25,000 | I16: Rp17,000 | J16: Rp20,000 | K16: Rp14,000 | L16: Rp5,000 | M16: Rp14,000 | N16: Rp5,000 | O16: Rp2,000 | P16: =SUM(tblPengeluaran[[#This Row],[Kolom1]:[Des]]) -> Rp158,000 | Q16: 1% | R16: =tblPengeluaran[[#This Row],[Kolom1]]/tblPengeluaran[[#Totals],[Kolom1]] -> 5% | S16: =tblPengeluaran[[#This Row],[Feb]]/tblPengeluaran[[#Totals],[Feb]] -> 4% | T16: =tblPengeluaran[[#This Row],[Mar]]/tblPengeluaran[[#Totals],[Mar]] -> 6% | U16: =tblPengeluaran[[#This Row],[Apr]]/tblPengeluaran[[#Totals],[Apr]] -> 7% | V16: =tblPengeluaran[[#This Row],[Mei]]/tblPengeluaran[[#Totals],[Mei]] -> 10% | W16: =tblPengeluaran[[#This Row],[Jun]]/tblPengeluaran[[#Totals],[Jun]] -> 6% | X16: =tblPengeluaran[[#This Row],[Jul]]/tblPengeluaran[[#Totals],[Jul]] -> 8% | Y16: =tblPengeluaran[[#This Row],[Agu]]/tblPengeluaran[[#Totals],[Agu]] -> 6% | Z16: =tblPengeluaran[[#This Row],[Sep]]/tblPengeluaran[[#Totals],[Sep]] -> 2% | AA16: =tblPengeluaran[[#This Row],[Okt]]/tblPengeluaran[[#Totals],[Okt]] -> 5% | AB16: =tblPengeluaran[[#This Row],[Nov]]/tblPengeluaran[[#Totals],[Nov]] -> 2% | AC16: =tblPengeluaran[[#This Row],[Des]]/tblPengeluaran[[#Totals],[Des]] -> 1% | AD16: =tblPengeluaran[[#This Row],[Tahunan]]/tblPengeluaran[[#Totals],[Tahunan]] -> 5%
B17: Pajak (real estat, dll.) | D17: Rp16,000 | E17: Rp13,000 | F17: Rp10,000 | G17: Rp7,000 | H17: Rp13,000 | I17: Rp3,000 | J17: Rp13,000 | K17: Rp17,000 | L17: Rp9,000 | M17: Rp4,000 | N17: Rp22,000 | O17: Rp18,000 | P17: =SUM(tblPengeluaran[[#This Row],[Kolom1]:[Des]]) -> Rp145,000 | Q17: 14% | R17: =tblPengeluaran[[#This Row],[Kolom1]]/tblPengeluaran[[#Totals],[Kolom1]] -> 7% | S17: =tblPengeluaran[[#This Row],[Feb]]/tblPengeluaran[[#Totals],[Feb]] -> 6% | T17: =tblPengeluaran[[#This Row],[Mar]]/tblPengeluaran[[#Totals],[Mar]] -> 4% | U17: =tblPengeluaran[[#This Row],[Apr]]/tblPengeluaran[[#Totals],[Apr]] -> 3% | V17: =tblPengeluaran[[#This Row],[Mei]]/tblPengeluaran[[#Totals],[Mei]] -> 5% | W17: =tblPengeluaran[[#This Row],[Jun]]/tblPengeluaran[[#Totals],[Jun]] -> 1% | X17: =tblPengeluaran[[#This Row],[Jul]]/tblPengeluaran[[#Totals],[Jul]] -> 5% | Y17: =tblPengeluaran[[#This Row],[Agu]]/tblPengeluaran[[#Totals],[Agu]] -> 7% | Z17: =tblPengeluaran[[#This Row],[Sep]]/tblPengeluaran[[#Totals],[Sep]] -> 4% | AA17: =tblPengeluaran[[#This Row],[Okt]]/tblPengeluaran[[#Totals],[Okt]] -> 2% | AB17: =tblPengeluaran[[#This Row],[Nov]]/tblPengeluaran[[#Totals],[Nov]] -> 7% | AC17: =tblPengeluaran[[#This Row],[Des]]/tblPengeluaran[[#Totals],[Des]] -> 8% | AD17: =tblPengeluaran[[#This Row],[Tahunan]]/tblPengeluaran[[#Totals],[Tahunan]] -> 5%
B18: Bunga | D18: Rp3,000 | E18: Rp2,000 | F18: Rp19,000 | G18: Rp21,000 | H18: Rp13,000 | I18: Rp9,000 | J18: Rp7,000 | K18: Rp13,000 | L18: Rp3,000 | M18: Rp6,000 | N18: Rp10,000 | O18: Rp13,000 | P18: =SUM(tblPengeluaran[[#This Row],[Kolom1]:[Des]]) -> Rp119,000 | Q18: 6% | R18: =tblPengeluaran[[#This Row],[Kolom1]]/tblPengeluaran[[#Totals],[Kolom1]] -> 1% | S18: =tblPengeluaran[[#This Row],[Feb]]/tblPengeluaran[[#Totals],[Feb]] -> 1% | T18: =tblPengeluaran[[#This Row],[Mar]]/tblPengeluaran[[#Totals],[Mar]] -> 8% | U18: =tblPengeluaran[[#This Row],[Apr]]/tblPengeluaran[[#Totals],[Apr]] -> 8% | V18: =tblPengeluaran[[#This Row],[Mei]]/tblPengeluaran[[#Totals],[Mei]] -> 5% | W18: =tblPengeluaran[[#This Row],[Jun]]/tblPengeluaran[[#Totals],[Jun]] -> 3% | X18: =tblPengeluaran[[#This Row],[Jul]]/tblPengeluaran[[#Totals],[Jul]] -> 3% | Y18: =tblPengeluaran[[#This Row],[Agu]]/tblPengeluaran[[#Totals],[Agu]] -> 6% | Z18: =tblPengeluaran[[#This Row],[Sep]]/tblPengeluaran[[#Totals],[Sep]] -> 1% | AA18: =tblPengeluaran[[#This Row],[Okt]]/tblPengeluaran[[#Totals],[Okt]] -> 2% | AB18: =tblPengeluaran[[#This Row],[Nov]]/tblPengeluaran[[#Totals],[Nov]] -> 3% | AC18: =tblPengeluaran[[#This Row],[Des]]/tblPengeluaran[[#Totals],[Des]] -> 6% | AD18: =tblPengeluaran[[#This Row],[Tahunan]]/tblPengeluaran[[#Totals],[Tahunan]] -> 4%
B19: Penyusutan | D19: Rp8,000 | E19: Rp7,000 | F19: Rp6,000 | G19: Rp7,000 | H19: Rp7,000 | I19: Rp6,000 | J19: Rp15,000 | K19: Rp23,000 | L19: Rp21,000 | M19: Rp16,000 | N19: Rp19,000 | O19: Rp7,000 | P19: =SUM(tblPengeluaran[[#This Row],[Kolom1]:[Des]]) -> Rp142,000 | Q19: 1% | R19: =tblPengeluaran[[#This Row],[Kolom1]]/tblPengeluaran[[#Totals],[Kolom1]] -> 3% | S19: =tblPengeluaran[[#This Row],[Feb]]/tblPengeluaran[[#Totals],[Feb]] -> 3% | T19: =tblPengeluaran[[#This Row],[Mar]]/tblPengeluaran[[#Totals],[Mar]] -> 2% | U19: =tblPengeluaran[[#This Row],[Apr]]/tblPengeluaran[[#Totals],[Apr]] -> 3% | V19: =tblPengeluaran[[#This Row],[Mei]]/tblPengeluaran[[#Totals],[Mei]] -> 3% | W19: =tblPengeluaran[[#This Row],[Jun]]/tblPengeluaran[[#Totals],[Jun]] -> 2% | X19: =tblPengeluaran[[#This Row],[Jul]]/tblPengeluaran[[#Totals],[Jul]] -> 6% | Y19: =tblPengeluaran[[#This Row],[Agu]]/tblPengeluaran[[#Totals],[Agu]] -> 10% | Z19: =tblPengeluaran[[#This Row],[Sep]]/tblPengeluaran[[#Totals],[Sep]] -> 9% | AA19: =tblPengeluaran[[#This Row],[Okt]]/tblPengeluaran[[#Totals],[Okt]] -> 6% | AB19: =tblPengeluaran[[#This Row],[Nov]]/tblPengeluaran[[#Totals],[Nov]] -> 6% | AC19: =tblPengeluaran[[#This Row],[Des]]/tblPengeluaran[[#Totals],[Des]] -> 3% | AD19: =tblPengeluaran[[#This Row],[Tahunan]]/tblPengeluaran[[#Totals],[Tahunan]] -> 5%
B20: Pengeluaran lain (tentukan) | D20: Rp14,000 | E20: Rp4,000 | F20: Rp24,000 | G20: Rp6,000 | H20: Rp20,000 | I20: Rp14,000 | J20: Rp21,000 | K20: Rp20,000 | L20: Rp22,000 | M20: Rp3,000 | N20: Rp14,000 | O20: Rp6,000 | P20: =SUM(tblPengeluaran[[#This Row],[Kolom1]:[Des]]) -> Rp168,000 | Q20: 1% | R20: =tblPengeluaran[[#This Row],[Kolom1]]/tblPengeluaran[[#Totals],[Kolom1]] -> 6% | S20: =tblPengeluaran[[#This Row],[Feb]]/tblPengeluaran[[#Totals],[Feb]] -> 2% | T20: =tblPengeluaran[[#This Row],[Mar]]/tblPengeluaran[[#Totals],[Mar]] -> 10% | U20: =tblPengeluaran[[#This Row],[Apr]]/tblPengeluaran[[#Totals],[Apr]] -> 2% | V20: =tblPengeluaran[[#This Row],[Mei]]/tblPengeluaran[[#Totals],[Mei]] -> 8% | W20: =tblPengeluaran[[#This Row],[Jun]]/tblPengeluaran[[#Totals],[Jun]] -> 5% | X20: =tblPengeluaran[[#This Row],[Jul]]/tblPengeluaran[[#Totals],[Jul]] -> 8% | Y20: =tblPengeluaran[[#This Row],[Agu]]/tblPengeluaran[[#Totals],[Agu]] -> 9% | Z20: =tblPengeluaran[[#This Row],[Sep]]/tblPengeluaran[[#Totals],[Sep]] -> 10% | AA20: =tblPengeluaran[[#This Row],[Okt]]/tblPengeluaran[[#Totals],[Okt]] -> 1% | AB20: =tblPengeluaran[[#This Row],[Nov]]/tblPengeluaran[[#Totals],[Nov]] -> 5% | AC20: =tblPengeluaran[[#This Row],[Des]]/tblPengeluaran[[#Totals],[Des]] -> 3% | AD20: =tblPengeluaran[[#This Row],[Tahunan]]/tblPengeluaran[[#Totals],[Tahunan]] -> 6%
B21: Pengeluaran lain (tentukan) | D21: Rp14,000 | E21: Rp7,000 | F21: Rp24,000 | G21: Rp10,000 | H21: Rp7,000 | I21: Rp24,000 | J21: Rp2,000 | K21: Rp11,000 | L21: Rp21,000 | M21: Rp19,000 | N21: Rp19,000 | O21: Rp20,000 | P21: =SUM(tblPengeluaran[[#This Row],[Kolom1]:[Des]]) -> Rp178,000 | Q21: 1% | R21: =tblPengeluaran[[#This Row],[Kolom1]]/tblPengeluaran[[#Totals],[Kolom1]] -> 6% | S21: =tblPengeluaran[[#This Row],[Feb]]/tblPengeluaran[[#Totals],[Feb]] -> 3% | T21: =tblPengeluaran[[#This Row],[Mar]]/tblPengeluaran[[#Totals],[Mar]] -> 10% | U21: =tblPengeluaran[[#This Row],[Apr]]/tblPengeluaran[[#Totals],[Apr]] -> 4% | V21: =tblPengeluaran[[#This Row],[Mei]]/tblPengeluaran[[#Totals],[Mei]] -> 3% | W21: =tblPengeluaran[[#This Row],[Jun]]/tblPengeluaran[[#Totals],[Jun]] -> 9% | X21: =tblPengeluaran[[#This Row],[Jul]]/tblPengeluaran[[#Totals],[Jul]] -> 1% | Y21: =tblPengeluaran[[#This Row],[Agu]]/tblPengeluaran[[#Totals],[Agu]] -> 5% | Z21: =tblPengeluaran[[#This Row],[Sep]]/tblPengeluaran[[#Totals],[Sep]] -> 9% | AA21: =tblPengeluaran[[#This Row],[Okt]]/tblPengeluaran[[#Totals],[Okt]] -> 7% | AB21: =tblPengeluaran[[#This Row],[Nov]]/tblPengeluaran[[#Totals],[Nov]] -> 6% | AC21: =tblPengeluaran[[#This Row],[Des]]/tblPengeluaran[[#Totals],[Des]] -> 9% | AD21: =tblPengeluaran[[#This Row],[Tahunan]]/tblPengeluaran[[#Totals],[Tahunan]] -> 6%
B22: Pengeluaran lain (tentukan) | D22: Rp11,000 | E22: Rp8,000 | F22: Rp25,000 | G22: Rp11,000 | H22: Rp9,000 | I22: Rp24,000 | J22: Rp13,000 | K22: Rp14,000 | L22: Rp19,000 | M22: Rp24,000 | N22: Rp15,000 | O22: Rp7,000 | P22: =SUM(tblPengeluaran[[#This Row],[Kolom1]:[Des]]) -> Rp180,000 | Q22: 1% | R22: =tblPengeluaran[[#This Row],[Kolom1]]/tblPengeluaran[[#Totals],[Kolom1]] -> 5% | S22: =tblPengeluaran[[#This Row],[Feb]]/tblPengeluaran[[#Totals],[Feb]] -> 4% | T22: =tblPengeluaran[[#This Row],[Mar]]/tblPengeluaran[[#Totals],[Mar]] -> 10% | U22: =tblPengeluaran[[#This Row],[Apr]]/tblPengeluaran[[#Totals],[Apr]] -> 4% | V22: =tblPengeluaran[[#This Row],[Mei]]/tblPengeluaran[[#Totals],[Mei]] -> 4% | W22: =tblPengeluaran[[#This Row],[Jun]]/tblPengeluaran[[#Totals],[Jun]] -> 9% | X22: =tblPengeluaran[[#This Row],[Jul]]/tblPengeluaran[[#Totals],[Jul]] -> 5% | Y22: =tblPengeluaran[[#This Row],[Agu]]/tblPengeluaran[[#Totals],[Agu]] -> 6% | Z22: =tblPengeluaran[[#This Row],[Sep]]/tblPengeluaran[[#Totals],[Sep]] -> 8% | AA22: =tblPengeluaran[[#This Row],[Okt]]/tblPengeluaran[[#Totals],[Okt]] -> 9% | AB22: =tblPengeluaran[[#This Row],[Nov]]/tblPengeluaran[[#Totals],[Nov]] -> 5% | AC22: =tblPengeluaran[[#This Row],[Des]]/tblPengeluaran[[#Totals],[Des]] -> 3% | AD22: =tblPengeluaran[[#This Row],[Tahunan]]/tblPengeluaran[[#Totals],[Tahunan]] -> 6%
B23: Lain-lain (tidak ditentukan) | D23: Rp8,000 | E23: Rp20,000 | F23: Rp11,000 | G23: Rp11,000 | H23: Rp11,000 | I23: Rp20,000 | J23: Rp12,000 | K23: Rp16,000 | L23: Rp5,000 | M23: Rp7,000 | N23: Rp21,000 | O23: Rp3,000 | P23: =SUM(tblPengeluaran[[#This Row],[Kolom1]:[Des]]) -> Rp145,000 | Q23: 2% | R23: =tblPengeluaran[[#This Row],[Kolom1]]/tblPengeluaran[[#Totals],[Kolom1]] -> 3% | S23: =tblPengeluaran[[#This Row],[Feb]]/tblPengeluaran[[#Totals],[Feb]] -> 10% | T23: =tblPengeluaran[[#This Row],[Mar]]/tblPengeluaran[[#Totals],[Mar]] -> 4% | U23: =tblPengeluaran[[#This Row],[Apr]]/tblPengeluaran[[#Totals],[Apr]] -> 4% | V23: =tblPengeluaran[[#This Row],[Mei]]/tblPengeluaran[[#Totals],[Mei]] -> 4% | W23: =tblPengeluaran[[#This Row],[Jun]]/tblPengeluaran[[#Totals],[Jun]] -> 7% | X23: =tblPengeluaran[[#This Row],[Jul]]/tblPengeluaran[[#Totals],[Jul]] -> 5% | Y23: =tblPengeluaran[[#This Row],[Agu]]/tblPengeluaran[[#Totals],[Agu]] -> 7% | Z23: =tblPengeluaran[[#This Row],[Sep]]/tblPengeluaran[[#Totals],[Sep]] -> 2% | AA23: =tblPengeluaran[[#This Row],[Okt]]/tblPengeluaran[[#Totals],[Okt]] -> 3% | AB23: =tblPengeluaran[[#This Row],[Nov]]/tblPengeluaran[[#Totals],[Nov]] -> 7% | AC23: =tblPengeluaran[[#This Row],[Des]]/tblPengeluaran[[#Totals],[Des]] -> 1% | AD23: =tblPengeluaran[[#This Row],[Tahunan]]/tblPengeluaran[[#Totals],[Tahunan]] -> 5%
B24: TOTAL PENGELUARAN | D24: =SUBTOTAL(109,tblPengeluaran[Kolom1]) -> Rp236,000 | E24: =SUBTOTAL(109,tblPengeluaran[Feb]) -> Rp205,000 | F24: =SUBTOTAL(109,tblPengeluaran[Mar]) -> Rp249,000 | G24: =SUBTOTAL(109,tblPengeluaran[Apr]) -> Rp261,000 | H24: =SUBTOTAL(109,tblPengeluaran[Mei]) -> Rp257,000 | I24: =SUBTOTAL(109,tblPengeluaran[Jun]) -> Rp274,000 | J24: =SUBTOTAL(109,tblPengeluaran[Jul]) -> Rp266,000 | K24: =SUBTOTAL(109,tblPengeluaran[Agu]) -> Rp235,000 | L24: =SUBTOTAL(109,tblPengeluaran[Sep]) -> Rp230,000 | M24: =SUBTOTAL(109,tblPengeluaran[Okt]) -> Rp259,000 | N24: =SUBTOTAL(109,tblPengeluaran[Nov]) -> Rp296,000 | O24: =SUBTOTAL(109,tblPengeluaran[Des]) -> Rp231,000 | P24: =SUBTOTAL(109,tblPengeluaran[Tahunan]) -> Rp2,999,000 | Q24: =SUBTOTAL(109,tblPengeluaran[Indeks %]) -> 100% | R24: =SUBTOTAL(109,tblPengeluaran[Jan %]) -> 100% | S24: =SUBTOTAL(109,tblPengeluaran[Feb %]) -> 100% | T24: =SUBTOTAL(109,tblPengeluaran[Mar %]) -> 100% | U24: =SUBTOTAL(109,tblPengeluaran[Apr %]) -> 100% | V24: =SUBTOTAL(109,tblPengeluaran[Mei %]) -> 100% | W24: =SUBTOTAL(109,tblPengeluaran[Jun %]) -> 100% | X24: =SUBTOTAL(109,tblPengeluaran[Jul %]) -> 100% | Y24: =SUBTOTAL(109,tblPengeluaran[Agu %]) -> 100% | Z24: =SUBTOTAL(109,tblPengeluaran[Sep %]) -> 100% | AA24: =SUBTOTAL(109,tblPengeluaran[Okt %]) -> 100% | AB24: =SUBTOTAL(109,tblPengeluaran[Nov %]) -> 100% | AC24: =SUBTOTAL(109,tblPengeluaran[Des %]) -> 100% | AD24: =SUBTOTAL(109,tblPengeluaran[Tahun %]) -> 100%
B26: Laba Bersih | D26: ='Biaya Penjualan'!$D$14-tblPengeluaran[[#Totals],[Kolom1]] -> Rp123,000 | E26: ='Biaya Penjualan'!E14-tblPengeluaran[[#Totals],[Feb]] -> Rp175,000 | F26: ='Biaya Penjualan'!F14-tblPengeluaran[[#Totals],[Mar]] -> Rp256,000 | G26: ='Biaya Penjualan'!G14-tblPengeluaran[[#Totals],[Apr]] -> Rp109,000 | H26: ='Biaya Penjualan'!H14-tblPengeluaran[[#Totals],[Mei]] -> Rp156,000 | I26: ='Biaya Penjualan'!I14-tblPengeluaran[[#Totals],[Jun]] -> Rp(8,000) | J26: ='Biaya Penjualan'!J14-tblPengeluaran[[#Totals],[Jul]] -> Rp32,000 | K26: ='Biaya Penjualan'!K14-tblPengeluaran[[#Totals],[Agu]] -> Rp214,000 | L26: ='Biaya Penjualan'!L14-tblPengeluaran[[#Totals],[Sep]] -> Rp100,000 | M26: ='Biaya Penjualan'!M14-tblPengeluaran[[#Totals],[Okt]] -> Rp148,000 | N26: ='Biaya Penjualan'!N14-tblPengeluaran[[#Totals],[Nov]] -> Rp179,000 | O26: ='Biaya Penjualan'!O14-tblPengeluaran[[#Totals],[Des]] -> Rp359,000 | P26: =SUM(D26:O26) -> Rp1,843,000 | R26: =D26/$P$26 -> 7% | S26: =E26/$P$26 -> 9% | T26: 14% | U26: 6% | V26: 8% | W26: -0% | X26: 2% | Y26: 12% | Z26: 5% | AA26: 8% | AB26: 10% | AC26: 19% | AD26: 100%
